bitfinex/quotes_SOLUSD_20250704
["timestamp","ask_amount","ask_price","bid_price","bid_amount"]
[1751638737380,36.8698585,148.13,148.09,0.1]
[1751638737575,36.8698585,148.13,148.09,11.5693255]
[1751638738494,25.400533,148.13,148.09,11.5693255]
[1751638738678,36.8698585,148.13,148.09,11.5693255]
[1751638739089,36.8698585,148.13,148.09,0.1]
[1751638739470,30.11897436,148.13,148.09,18.32192587]
[1751638739684,30.11897436,148.13,148.09,106.02192587]
[1751638739884,44.21985673,148.14,148.09,106.02192587]
[1751638740084,44.21985673,148.14,148.09,94.55260037]
[1751638740286,18.64964886,148.14,148.1,11.4693255]
[1751638740597,18.64964886,148.15,148.12,11.4693255]
[1751638741181,18.64964886,148.16,148.13,11.4693255]
[1751638741498,18.64964886,148.16,148.09,0.1]
[1751638741499,18.64964886,148.12,148.09,0.1]
[1751638741683,18.64964886,148.12,148.09,11.5693255]
[1751638742081,30.11897436,148.12,148.09,0.1]
[1751638742592,11.4693255,148.11,148.09,0.1]
[1751638742787,30.11897436,148.12,148.09,0.1]
[1751638742986,18.22015247,148.13,148.09,11.5693255]
[1751638743287,11.4693255,148.13,148.09,18.3219018]
[1751638744076,36.86937566,148.14,148.1,11.4693255]
[1751638744277,36.86937566,148.14,148.09,6.8525763]
[1751638744476,11.4693255,148.12,148.09,0.1]
[1751638744993,18.64964886,148.13,148.09,0.1]
[1751638745187,30.11897436,148.13,148.09,0.1]
[1751638745572,11.4693255,148.11,148.09,0.1]
[1751638745896,6.70904753,148.1,148.09,0.1]
[1751638746297,13.46124199,148.1,148.09,0.1]
[1751638746672,6.70904753,148.1,148.09,0.1]
[1751638747377,6.70904753,148.11,148.09,0.1]
[1751638748106,6.70904753,148.1,148.09,0.1]
[1751638748293,18.64964886,148.1,148.09,0.1]
[1751638748784,25.40184332,148.1,148.09,0.1]
[1751638749706,6.70904753,148.11,148.09,0.1]
[1751638750601,18.64964886,148.11,148.09,0.1]
[1751638750900,25.35869639,148.11,148.09,0.1]
[1751638751478,6.70904753,148.1,148.09,0.1]
[1751638751683,18.64964886,148.11,148.09,0.1]
[1751638751881,13.46056105,148.12,148.09,0.1]
[1751638752198,18.64964886,148.12,148.09,0.1]
[1751638752590,6.70904753,148.11,148.09,0.1]
[1751638753199,6.70904753,148.1,148.09,0.1]
[1751638753600,6.70904753,148.11,148.09,0.1]
[1751638754012,25.35869639,148.1,148.09,0.1]
[1751638754309,25.40184332,148.1,148.09,0.1]
[1751638754609,18.64964886,148.1,148.09,0.1]
[1751638754780,25.40184332,148.1,148.09,0.1]
[1751638755188,13.46092836,148.11,148.09,0.1]
[1751638755811,18.64964886,148.13,148.09,0.1]
[1751638756106,6.70904753,148.12,148.09,0.1]
[1751638756286,6.70904753,148.11,148.09,0.1]
[1751638756798,6.70904753,148.12,148.09,0.1]
[1751638756994,6.70904753,148.11,148.09,0.1]
[1751638757203,6.70904753,148.12,148.09,0.1]
[1751638757499,25.40062017,148.13,148.09,0.1]
[1751638757500,6.70904753,148.11,148.09,0.1]
[1751638758080,25.40062017,148.13,148.09,0.1]
[1751638758303,32.75048859,148.14,148.09,6.80904753]
[1751638758600,6.70904753,148.14,148.1,6.70904753]
[1751638758807,6.70904753,148.14,148.09,6.80904753]
[1751638759101,6.70904753,148.15,148.1,6.70904753]
[1751638759307,25.35869639,148.16,148.09,87.8]
[1751638759504,25.35869639,148.16,148.11,6.70904753]
[1751638760113,6.70904753,148.14,148.1,6.70904753]
[1751638760605,25.35869639,148.14,148.1,6.70904753]
[1751638760809,13.45896315,148.15,148.11,6.70904753]
[1751638761000,13.45870695,148.16,148.1,6.75213927]
[1751638761198,6.5925,148.18,148.13,6.70904753]
[1751638761199,18.64964886,148.17,148.13,6.70904753]
[1751638761380,1.5574,148.21,148.1,95.99783927]
[1751638761381,18.64964886,148.21,148.16,6.70904753]
[1751638761584,17.56678516,148.25,148.12,94.40904753]
[1751638761585,13.45577536,148.22,148.12,94.40904753]
[1751638761784,18.64964886,148.2,148.12,94.40904753]
[1751638762007,6.70904753,148.21,148.17,6.70904753]
[1751638762210,18.64964886,148.21,148.12,94.40904753]
[1751638762388,25.35869639,148.21,148.16,6.70904753]
[1751638762582,32.10620184,148.21,148.16,6.70904753]
[1751638763223,32.10620184,148.21,148.15,6.74950447]
[1751638763412,32.10620184,148.21,148.16,6.70904753]
[1751638763735,25.39715431,148.21,148.17,6.70904753]
[1751638763907,6.70904753,148.24,148.19,6.70904753]
[1751638764104,6.70904753,148.24,148.21,6.70904753]
[1751638764105,18.64964886,148.24,148.21,6.70904753]
[1751638764323,18.64964886,148.24,148.18,1.6048]
[1751638764626,25.39552027,148.24,148.2,6.70904753]
[1751638764828,32.1045678,148.24,148.2,6.70904753]
[1751638765145,25.39552027,148.24,148.19,6.74794151]
[1751638765310,25.35869639,148.24,148.2,6.70904753]
[1751638765503,25.39549712,148.24,148.19,6.74794151]
[1751638765813,32.10454465,148.24,148.2,6.70904753]
[1751638766309,6.70904753,148.23,148.18,1.6048]
[1751638766512,25.39549712,148.24,148.17,113.7]
[1751638766513,13.45623058,148.21,148.17,87.7]
[1751638766774,6.70904753,148.21,148.17,94.40904753]
[1751638766934,6.74627268,148.23,148.17,94.44899273]
[1751638767223,6.70904753,148.22,148.17,94.44899273]
[1751638767405,6.70904753,148.22,148.18,6.70904753]
[1751638768030,13.4558063,148.22,148.18,6.70904753]
[1751638769311,18.64964886,148.24,148.18,6.70904753]
[1751638769312,6.74643311,148.23,148.18,13.45757722]
[1751638769511,18.64964886,148.24,148.19,6.70904753]
[1751638769512,25.35869639,148.24,148.19,6.70904753]
[1751638769707,6.70904753,148.23,148.19,94.40904753]
[1751638769922,25.35869639,148.24,148.19,94.40904753]
[1751638770108,18.64964886,148.24,148.19,94.40904753]
[1751638770313,32.10468022,148.24,148.19,87.7]
[1751638770625,6.70904753,148.23,148.19,94.40904753]
[1751638771021,25.35869639,148.22,148.19,87.7]
[1751638771205,6.70904753,148.2,148.16,6.70904753]
[1751638771408,6.70904753,148.2,148.15,26.0]
[1751638771608,6.70904753,148.2,148.16,6.70904753]
[1751638772037,6.70904753,148.18,148.14,89.298]
[1751638772216,6.70904753,148.16,148.14,87.7]
[1751638772422,6.70904753,148.18,148.13,6.70904753]
[1751638772623,6.70904753,148.18,148.14,6.70904753]
[1751638773610,6.74718305,148.21,148.12,87.7]
[1751638773611,6.70904753,148.16,148.12,6.70904753]
[1751638773813,6.70904753,148.16,148.12,13.46020997]
[1751638774256,6.70904753,148.17,148.12,6.75116244]
[1751638774442,6.70904753,148.16,148.12,6.70904753]
[1751638774843,6.70904753,148.15,148.11,94.40904753]
[1751638775014,6.70904753,148.15,148.11,6.70904753]
[1751638775215,6.70904753,148.12,148.09,0.1]
[1751638775745,6.70904753,148.1,148.09,0.1]
[1751638776754,6.70904753,148.11,148.09,0.1]
[1751638777634,25.35869639,148.12,148.09,0.1]
[1751638779026,6.70904753,148.1,148.09,0.1]
[1751638780826,13.46124199,148.1,148.09,0.1]
[1751638781526,13.46124199,148.1,148.09,1e-08]
[1751638781527,100.56909085,148.1,148.09,1e-08]
[1751638782355,74.56909085,148.1,148.09,1e-08]
[1751638782567,25.35869639,148.05,148.04,0.1]
[1751638782858,25.35869639,148.05,148.03,0.1]
[1751638782859,38.82221875,148.05,148.03,0.1]
[1751638783163,38.82221875,148.05,148.03,1e-08]
[1751638783164,25.35869639,148.04,148.03,1e-08]
[1751638783325,18.64964886,148.04,148.03,1e-08]
[1751638783529,25.35869639,148.04,148.03,1e-08]
[1751638783921,30.16534548,148.04,148.03,1e-08]
[1751638784139,18.64964886,148.04,148.03,1e-08]
[1751638784454,30.16534548,148.04,148.03,1e-08]
[1751638784747,36.92027657,148.04,148.03,1e-08]
[1751638785681,36.92027657,148.04,148.0,3.5]
[1751638785858,56.16534548,148.01,148.0,3.5]
[1751638786060,92.22534548,148.01,148.0,3.5]
[1751638786282,98.42974548,148.01,148.0,2.00000001]
[1751638786456,44.64964886,147.97,147.96,0.1]
[1751638786794,18.64964886,147.92,147.84,3.5]
[1751638786995,11.51569662,147.85,147.84,3.5]
[1751638787488,44.64964886,147.85,147.84,3.5]
[1751638787664,56.16534548,147.85,147.84,3.5]
[1751638787862,37.51569662,147.85,147.84,3.5]
[1751638788182,1.6172,147.94,147.84,3.5]
[1751638788366,18.64964886,147.89,147.84,3.5]
[1751638788685,11.51569662,147.85,147.82,5.00450258]
[1751638788877,11.51569662,147.85,147.82,11.76931991]
[1751638789282,26.0,147.89,147.82,5.00450258]
[1751638789470,11.51569662,147.85,147.82,5.00450258]
[1751638789653,18.64964886,147.88,147.82,5.00450258]
[1751638789857,30.16534548,147.83,147.82,5.00450258]
[1751638790097,11.51569662,147.84,147.82,5.00450258]
[1751638790378,11.51569662,147.86,147.82,11.7693738]
[1751638790589,11.51569662,147.88,147.82,11.7693738]
[1751638790759,37.51569662,147.89,147.85,6.76361176]
[1751638791081,18.64964886,147.91,147.86,11.51569662]
[1751638791265,11.51569662,147.9,147.85,6.76361176]
[1751638791578,11.51569662,147.9,147.86,11.51569662]
[1751638791779,18.64964886,147.91,147.85,6.76361176]
[1751638792078,11.51569662,147.91,147.87,11.51569662]
[1751638792287,18.64964886,147.92,147.87,11.51569662]
[1751638792470,11.51569662,147.91,147.85,6.76361176]
[1751638792667,11.51569662,147.91,147.87,11.51569662]
[1751638792853,42.8391521,147.95,147.9,11.51569662]
[1751638792854,18.64964886,147.94,147.9,11.51569662]
[1751638793063,11.51569662,147.91,147.85,18.27930838]
[1751638793267,18.64964886,147.89,147.82,5.00450258]
[1751638793611,18.64964886,147.86,147.82,11.7694349]
[1751638793912,11.51569662,147.87,147.82,11.7694349]
[1751638794106,7.9,147.93,147.82,11.7694349]
[1751638794107,20.26,148.02,147.82,54.681896]
[1751638794295,18.64964886,147.91,147.82,54.681896]
[1751638794466,18.64964886,147.94,147.85,26.0]
[1751638794669,18.64964886,147.94,147.88,11.51569662]
[1751638794670,11.51569662,147.93,147.88,11.51569662]
[1751638795066,11.51569662,147.93,147.89,18.27747902]
[1751638795289,11.51569662,147.92,147.87,32.76257321]
[1751638795492,11.51569662,147.92,147.88,11.51569662]
[1751638795699,11.51569662,147.92,147.87,26.0]
[1751638795887,11.51569662,147.92,147.87,37.51569662]
[1751638796081,11.51569662,147.91,147.84,6.4175]
[1751638796281,11.51569662,147.9,147.85,26.0]
[1751638796493,11.51569662,147.89,147.85,37.51569662]
[1751638796793,11.51569662,147.9,147.85,26.0]
[1751638796996,11.51569662,147.87,147.82,5.00450258]
[1751638797188,11.51569662,147.86,147.82,5.00450258]
[1751638797497,11.51569662,147.86,147.82,16.5201992]
[1751638797696,11.51569662,147.86,147.82,5.00450258]
[1751638797878,11.51569662,147.86,147.82,23.28510418]
[1751638798073,11.51569662,147.87,147.82,11.76940756]
[1751638798387,11.51569662,147.88,147.83,11.51569662]
[1751638798999,18.64964886,147.89,147.82,11.76940756]
[1751638799000,11.51569662,147.89,147.82,11.76940756]
[1751638799173,11.51569662,147.87,147.83,11.51569662]
[1751638799379,11.51569662,147.88,147.83,11.51569662]
[1751638799778,11.51569662,147.87,147.83,11.51569662]
[1751638799989,11.51569662,147.86,147.82,16.5201992]
[1751638800383,11.51569662,147.85,147.82,5.00450258]
[1751638801387,18.27934807,147.85,147.82,5.00450258]
[1751638801599,11.51569662,147.85,147.82,5.00450258]
[1751638801792,11.51569662,147.86,147.82,5.00450258]
[1751638801996,11.51569662,147.85,147.82,5.00450258]
[1751638802191,11.51569662,147.86,147.82,5.00450258]
[1751638802396,18.64964886,147.88,147.84,11.51569662]
[1751638802601,11.51569662,147.86,147.82,5.00450258]
[1751638803106,11.51569662,147.87,147.82,16.5201992]
[1751638803306,11.51569662,147.86,147.82,23.2851515]
[1751638803477,6.7617824,147.89,147.82,5.00450258]
[1751638803678,25.41114472,147.9,147.84,11.51569662]
[1751638803877,18.64964886,147.9,147.85,11.51569662]
[1751638804082,30.16534548,147.9,147.85,11.51569662]
[1751638804291,18.64964886,147.9,147.82,54.68193077]
[1751638804479,11.51569662,147.91,147.86,11.51569662]
[1751638804675,30.16534548,147.91,147.87,11.51569662]
[1751638805108,25.41065252,147.91,147.87,11.51569662]
[1751638805310,24.79777019,147.95,147.85,87.7]
[1751638805311,7.9,147.95,147.85,87.7]
[1751638805487,6.75766995,147.98,147.88,32.5581]
[1751638805696,6.75766995,147.98,147.92,11.51569662]
[1751638805697,11.51569662,147.97,147.92,11.51569662]
[1751638805876,6.75766995,147.98,147.88,32.5581]
[1751638805877,23.65184483,147.98,147.88,32.5581]
[1751638806083,11.51569662,147.92,147.88,44.07379662]
[1751638806379,18.64964886,147.97,147.91,11.51569662]
[1751638806593,11.51569662,147.95,147.91,11.51569662]
[1751638806814,18.64964886,147.97,147.88,32.5581]
[1751638807179,11.51569662,147.95,147.9,11.51569662]
[1751638807377,30.16534548,147.95,147.89,6.7617824]
[1751638807576,30.16534548,147.95,147.91,11.51569662]
[1751638807796,30.16534548,147.95,147.89,6.7617824]
[1751638807996,30.16534548,147.95,147.91,11.51569662]
[1751638807997,18.64964886,147.95,147.91,11.51569662]
[1751638808201,11.51569662,147.96,147.92,11.51569662]
[1751638808508,11.51569662,147.96,147.91,11.51569662]
[1751638808509,30.16534548,147.96,147.91,11.51569662]
[1751638808709,11.51569662,147.97,147.92,11.51569662]
[1751638808883,6.75781367,147.98,147.89,23.66623841]
[1751638808884,30.16534548,147.96,147.91,11.51569662]
[1751638809699,30.16534548,147.96,147.88,32.5581]
[1751638809700,11.51569662,147.93,147.88,50.83603503]
[1751638809905,11.51569662,147.93,147.88,18.07379662]
[1751638810115,11.51569662,147.93,147.88,13.32032458]
[1751638810413,11.51569662,147.93,147.89,11.51569662]
[1751638810592,11.51569662,147.93,147.88,6.5581]
[1751638810791,11.51569662,147.93,147.88,11.51569662]
[1751638810985,23.65664075,147.95,147.84,7.904]
[1751638811185,11.51569662,147.91,147.86,11.51569662]
[1751638811411,60.09664075,147.95,147.86,11.51569662]
[1751638811599,60.09664075,147.95,147.84,33.904]
[1751638811600,11.51569662,147.89,147.84,40.6680312]
[1751638811795,11.51569662,147.9,147.86,11.51569662]
[1751638812114,18.64964886,147.94,147.86,11.51569662]
[1751638812115,11.51569662,147.91,147.86,11.51569662]
[1751638812285,11.51569662,147.9,147.84,40.6680312]
[1751638812487,11.51569662,147.91,147.86,11.51569662]
[1751638813923,18.64964886,147.94,147.87,11.51569662]
[1751638814287,18.64964886,147.94,147.84,57.57820436]
[1751638814288,6.75949709,147.94,147.84,57.57820436]
[1751638814483,11.51569662,147.92,147.84,145.27820436]
[1751638814702,23.65823982,147.94,147.87,11.51569662]
[1751638814909,23.65823982,147.94,147.84,40.6680312]
[1751638814910,11.51569662,147.9,147.84,40.6680312]
[1751638815113,11.51569662,147.9,147.86,11.51569662]
[1751638815790,6.76041103,147.92,147.85,6.7631747]
[1751638816100,6.76041103,147.92,147.87,11.51569662]
[1751638816309,11.51569662,147.91,147.85,6.7631747]
[1751638816498,11.51569662,147.91,147.86,11.51569662]
[1751638816824,11.51569662,147.9,147.86,11.51569662]
[1751638817223,11.51569662,147.9,147.84,128.36795752]
[1751638817402,11.51569662,147.89,147.84,52.18365414]
[1751638817591,11.51569662,147.88,147.84,13.11019662]
[1751638817798,11.51569662,147.87,147.84,1.5945]
[1751638818001,18.64964886,147.89,147.82,5.00450258]
[1751638818221,6.76132521,147.9,147.84,11.51569662]
[1751638818392,6.76041103,147.92,147.86,11.51569662]
[1751638818593,18.27610765,147.92,147.84,87.7]
[1751638818792,18.27610765,147.92,147.87,11.51569662]
[1751638819307,11.51569662,147.91,147.87,11.51569662]
[1751638820509,18.2768462,147.91,147.86,11.51569662]
[1751638820704,11.51569662,147.9,147.85,11.51569662]
[1751638820909,25.41079844,147.91,147.84,99.21569662]
[1751638821219,11.51569662,147.88,147.82,92.70450258]
[1751638821518,11.51569662,147.87,147.83,11.51569662]
[1751638821719,18.64964886,147.9,147.83,11.51569662]
[1751638821901,11.51569662,147.88,147.84,11.51569662]
[1751638822096,11.51569662,147.89,147.85,11.51569662]
[1751638822292,6.76114958,147.91,147.82,116.38194018]
[1751638822494,11.51569662,147.9,147.86,11.51569662]
[1751638822899,11.51569662,147.89,147.84,11.51569662]
[1751638823092,11.51569662,147.87,147.82,99.46947908]
[1751638823291,6.7613458,147.9,147.83,11.51569662]
[1751638823528,11.51569662,147.88,147.83,11.51569662]
[1751638824023,6.7613458,147.9,147.82,11.76944151]
[1751638824024,11.51569662,147.86,147.82,11.76944151]
[1751638824318,11.51569662,147.85,147.82,5.00450258]
[1751638824520,18.27939923,147.85,147.82,5.00450258]
[1751638824705,11.51569662,147.83,147.82,5.00450258]
[1751638825325,11.51569662,147.84,147.82,5.00450258]
[1751638825523,11.51569662,147.83,147.82,5.00450258]
[1751638826525,11.51569662,147.83,147.8,0.1]
[1751638826526,6.3882,147.82,147.8,0.1]
[1751638826699,6.3882,147.82,147.76,0.1]
[1751638826700,31.72534548,147.81,147.76,0.1]
[1751638826898,11.51569662,147.77,147.76,0.1]
[1751638827123,26.0,147.78,147.76,0.1]
[1751638827295,11.51569662,147.77,147.76,0.1]
[1751638827814,30.16534548,147.77,147.76,0.1]
[1751638827995,18.64964886,147.77,147.76,0.1]
[1751638828496,26.0,147.78,147.76,0.1]
[1751638828702,26.0,147.79,147.76,0.1]
[1751638828904,18.64964886,147.79,147.76,0.1]
[1751638829202,32.76554802,147.81,147.76,0.1]
[1751638829534,30.16534548,147.77,147.76,0.1]
[1751638829935,68.22534548,147.77,147.76,0.1]
[1751638830625,56.70964886,147.77,147.76,0.1]
[1751638830802,74.99261894,147.77,147.76,0.1]
[1751638831229,68.22534548,147.77,147.76,0.1]
[1751638832011,18.64964886,147.77,147.76,0.1]
[1751638832505,30.16534548,147.77,147.76,0.1]
[1751638832831,18.64964886,147.77,147.76,0.1]
[1751638833433,30.16534548,147.77,147.76,0.1]
[1751638833621,26.0,147.78,147.76,0.1]
[1751638833812,11.51569662,147.77,147.76,0.1]
[1751638834018,26.0,147.78,147.76,0.1]
[1751638834221,11.51569662,147.77,147.76,0.1]
[1751638834425,38.02,147.79,147.76,0.1]
[1751638834641,18.64964886,147.78,147.76,0.1]
[1751638834824,11.51569662,147.77,147.76,0.1]
[1751638835353,30.16534548,147.78,147.76,0.1]
[1751638835555,56.16534548,147.77,147.76,0.1]
[1751638835708,56.16534548,147.77,147.72,1.4359121]
[1751638835709,18.64964886,147.76,147.72,1.4359121]
[1751638835908,56.16534548,147.77,147.72,1.4359121]
[1751638835909,25.04534886,147.74,147.72,1.4359121]
[1751638836138,30.16534548,147.73,147.72,1.4359121]
[1751638836317,18.64964886,147.73,147.72,1.4359121]
[1751638836739,46.7957,147.74,147.72,1.4359121]
[1751638836969,25.06054886,147.78,147.72,1.4359121]
[1751638837253,18.64964886,147.8,147.72,8.2051752]
[1751638837553,6.76409328,147.84,147.72,8.2051752]
[1751638837843,48.20409328,147.84,147.72,8.2051752]
[1751638838026,18.64964886,147.83,147.76,11.51569662]
[1751638838228,18.64964886,147.83,147.72,34.2051752]
[1751638838431,74.20409328,147.84,147.72,34.2051752]
[1751638838432,32.76409328,147.84,147.72,34.2051752]
[1751638838630,11.51569662,147.81,147.72,34.2051752]
[1751638838942,18.64964886,147.83,147.72,34.2051752]
[1751638839246,18.64964886,147.83,147.76,11.51569662]
[1751638839433,11.51569662,147.8,147.76,11.51569662]
[1751638839623,18.64964886,147.84,147.77,11.51569662]
[1751638840144,11.51569662,147.82,147.75,6.76796623]
[1751638840445,18.64964886,147.85,147.78,11.51569662]
[1751638840644,11.51569662,147.83,147.78,11.51569662]
[1751638840846,11.51569662,147.83,147.75,23.68844]
[1751638841146,18.64964886,147.85,147.77,7.7706]
[1751638841147,11.51569662,147.85,147.77,7.7706]
[1751638841444,11.51569662,147.85,147.8,11.51569662]
[1751638841639,11.51569662,147.85,147.81,11.51569662]
[1751638841910,0.2,147.86,147.78,6.76681553]
[1751638842021,0.2,147.86,147.83,11.51569662]
[1751638842448,0.2,147.86,147.84,11.51569662]
[1751638842625,0.2,147.86,147.85,11.51569662]
[1751638842827,0.2,147.86,147.84,11.51569662]
[1751638843041,0.2,147.86,147.85,11.51569662]
[1751638843356,0.2,147.86,147.85,6.76361176]
[1751638843649,0.2,147.86,147.85,11.51569662]
[1751638844148,0.2,147.86,147.82,6.76498444]
[1751638844568,0.2,147.86,147.85,11.51569662]
[1751638844723,0.2,147.86,147.82,23.67744554]
[1751638844923,0.2,147.86,147.85,11.51569662]
[1751638845339,0.2,147.86,147.85,18.27930838]
[1751638845749,1e-08,147.86,147.85,52.07390838]
[1751638846275,32.3897,147.98,147.88,26.0]
[1751638846276,6.3897,147.98,147.88,26.0]
[1751638846448,6.3897,147.98,147.92,11.51569662]
[1751638846649,11.51569662,147.96,147.91,11.51569662]
[1751638847053,18.64964886,147.99,147.92,11.51569662]
[1751638847256,18.64964886,147.99,147.88,26.0]
[1751638847257,11.51569662,147.99,147.95,11.51569662]
[1751638847455,0.2,148.02,147.97,11.51569662]
[1751638847843,11.71569662,148.02,147.94,23.65823982]
[1751638848044,11.71569662,148.02,147.98,11.51569662]
[1751638848045,0.2,148.02,147.98,11.51569662]
[1751638848447,0.2,148.02,147.99,11.51569662]
[1751638848658,0.2,148.02,148.01,11.51569662]
[1751638849159,0.2,148.02,147.97,26.0]
[1751638849390,0.2,148.02,148.01,11.51569662]
[1751638849868,0.2,148.02,148.01,16.53019486]
[1751638850446,0.2,148.02,148.0,26.0]
[1751638850646,0.2,148.02,148.01,16.53019486]
[1751638851478,0.2,148.02,148.01,23.2864951]
[1751638851638,0.2,148.1,148.01,23.2864951]
[1751638851639,0.2,148.1,148.01,41.76054572]
[1751638851836,0.2,148.1,148.09,16.53019486]
[1751638852270,1e-08,148.1,148.09,42.53019486]
[1751638852439,1e-08,148.1,148.09,26.0]
[1751638852641,1e-08,148.1,148.09,42.53019486]
[1751638852870,1e-08,148.1,148.09,16.53019486]
[1751638853570,1e-08,148.1,148.08,23.28330128]
[1751638853769,1e-08,148.1,148.04,17.3133]
[1751638853970,16.53019486,148.08,148.02,6.75551678]
[1751638854273,1e-08,148.1,148.02,6.75551678]
[1751638854274,1e-08,148.1,148.03,16.53019486]
[1751638854477,1e-08,148.1,147.99,6.5774]
[1751638854478,35.17984373,148.1,147.99,13.33426181]
[1751638854645,35.17984373,148.1,148.0,16.53019486]
[1751638854846,16.53019486,148.05,148.0,16.53019486]
[1751638855469,1e-08,148.1,148.01,16.53019486]
[1751638855645,1e-08,148.1,148.03,16.53019486]
[1751638855850,16.53019486,148.07,148.03,16.53019486]
[1751638856046,16.53019486,148.07,148.0,6.75659687]
[1751638856247,16.53019486,148.07,148.02,16.53019486]
[1751638856467,16.53019486,148.07,148.03,16.53019486]
[1751638856668,1e-08,148.1,147.99,6.5774]
[1751638856669,16.53019486,148.06,148.01,16.53019486]
[1751638856857,25.40229927,148.09,148.0,16.53019486]
[1751638857061,42.2839253,148.09,148.0,16.53019486]
[1751638857666,16.53019486,148.04,148.0,16.53019486]
[1751638857860,16.53019486,148.04,147.99,16.53019486]
[1751638858056,16.53019486,148.03,147.99,16.53019486]
[1751638858584,16.53019486,148.01,147.96,16.53019486]
[1751638858750,16.53019486,148.01,147.95,32.75899587]
[1751638858951,16.53019486,148.01,147.97,16.53019486]
[1751638859681,16.53019486,148.02,147.97,16.53019486]
[1751638860172,58.50450199,148.07,148.0,16.53019486]
[1751638860173,41.62,148.07,148.0,16.53019486]
[1751638860377,16.53019486,148.04,147.99,16.53019486]
[1751638860683,41.62,148.07,147.95,49.65659641]
[1751638860684,16.53019486,148.03,147.98,16.53019486]
[1751638860981,16.53019486,148.03,147.98,23.28758182]
[1751638861193,18.64964886,148.08,148.02,16.53019486]
[1751638861351,16.53019486,148.08,148.03,16.53019486]
[1751638861556,16.53019486,148.09,147.98,49.65156184]
[1751638861862,16.53019486,148.08,148.04,16.53019486]
[1751638862062,6.75221687,148.1,147.98,137.35156184]
[1751638862063,1e-08,148.1,148.06,16.53019486]
[1751638862265,1e-08,148.1,148.01,26.0]
[1751638862451,1e-08,148.1,148.02,1.5451]
[1751638862654,1e-08,148.1,148.09,23.28284527]
[1751638863390,1e-08,148.1,148.08,6.75305308]
[1751638863566,16.53019486,148.09,148.04,26.0]
[1751638863775,16.53019486,148.09,148.04,16.53019486]
[1751638864070,16.53019486,148.06,148.02,42.53019486]
[1751638864268,18.64964886,148.09,147.97,12.5736]
[1751638864269,16.53019486,148.04,147.97,29.46819574]
[1751638864471,26.0,148.09,148.03,16.53019486]
[1751638864667,16.53019487,148.1,148.05,16.53019486]
[1751638865256,16.53019486,148.09,148.05,16.53019486]
[1751638865477,16.53019486,148.09,148.01,6.75630024]
[1751638865679,16.53019486,148.08,148.03,16.53019486]
[1751638865981,16.53019486,148.08,148.01,6.75630024]
[1751638865982,16.53019486,148.09,148.04,16.53019486]
[1751638866365,16.53019486,148.09,148.01,6.75630024]
[1751638866366,18.64964887,148.1,148.05,16.53019486]
[1751638866762,1e-08,148.1,148.07,16.53019486]
[1751638867379,1e-08,148.1,148.04,26.0]
[1751638867587,1e-08,148.1,148.07,16.53019486]
[1751638867772,1e-08,148.1,148.04,26.0]
[1751638867962,1e-08,148.1,148.07,16.53019486]
[1751638868556,1e-08,148.1,148.08,16.53019486]
[1751638869386,1e-08,148.1,148.09,16.53019486]
[1751638870474,1e-08,148.1,148.08,26.0]
[1751638870658,1e-08,148.1,148.09,16.53019486]
[1751638870864,1e-08,148.1,148.08,49.28328597]
[1751638871090,1e-08,148.1,148.09,16.53019486]
[1751638872863,1e-08,148.1,148.09,23.28284527]
[1751638873217,1e-08,148.1,148.09,146.16268899]
[1751638873380,0.2,148.16,148.12,26.0]
[1751638873579,0.2,148.16,148.15,16.53019486]
[1751638873989,0.2,148.16,148.13,26.0]
[1751638874177,0.2,148.16,148.14,16.53019486]
[1751638874380,0.2,148.16,148.13,26.0]
[1751638874575,0.2,148.16,148.14,16.53019486]
[1751638874775,0.2,148.16,148.15,23.28011048]
[1751638875261,13.38469784,148.28,148.18,26.0]
[1751638875485,16.53019486,148.26,148.18,26.0]
[1751638875688,6.6407,148.28,148.23,16.53019486]
[1751638875869,6.6407,148.28,148.18,26.0]
[1751638875870,16.53019486,148.28,148.24,16.53019486]
[1751638876071,0.2,148.29,148.2,16.53019486]
[1751638876272,0.2,148.29,148.26,16.53019486]
[1751638876471,0.2,148.29,148.23,26.0]
[1751638876786,0.2,148.29,148.25,16.53019486]
[1751638877187,0.2,148.29,148.26,16.53019486]
[1751638877396,0.2,148.29,148.23,26.0]
[1751638877397,16.53019486,148.28,148.21,26.0]
[1751638877606,16.53019486,148.26,148.21,26.0]
[1751638877776,16.53019486,148.24,148.2,16.53019486]
[1751638877971,16.53019486,148.25,148.21,16.53019486]
[1751638878180,18.64964886,148.28,148.21,16.53019486]